lending/lending_fUSD_20251124
["ID","MTS","AMOUNT","RATE_DAILY","PERIOD"]
[394860615,1764024669592,-500.0,0.00036438,8]
[394860616,1764024669602,-500.0,0.00036438,8]
[394860617,1764024669611,-500.0,0.00036438,8]
[394860618,1764024669620,-698.86,0.00036438,8]
[394860619,1764024669629,-500.0,0.00036438,8]
[394860620,1764024669640,-500.0,0.00036438,8]
[394860622,1764024669650,-500.0,0.00036438,8]
[394860623,1764024669663,-500.0,0.00036438,8]
[394860624,1764024669672,-500.4562418,0.00036438,3]
[394860625,1764024669682,-5039.41,0.00036438,2]
[394860626,1764024669692,-1797.52,0.00036438,8]
[394860627,1764024669703,-500.0,0.00036438,8]
[394860628,1764024669712,-500.0,0.00036438,8]
[394860629,1764024669722,-500.0,0.00036438,8]
[394860630,1764024669733,-500.0,0.00036438,8]
[394860631,1764024669743,-500.0,0.00036438,8]
[394860632,1764024669752,-500.0,0.00036438,8]
[394860633,1764024669761,-629.37,0.00036438,8]
[394860634,1764024669771,-199.0,0.00036438,8]
[394860635,1764024669780,-1279.26,0.00036438,8]
[394860636,1764024669789,-500.0,0.00036438,8]
[394860637,1764024669799,-500.0,0.00036438,8]
[394860638,1764024669809,-500.0,0.00036438,8]
[394860639,1764024669818,-500.0,0.00036438,8]
[394860640,1764024669828,-500.0,0.00036438,8]
[394860641,1764024669838,-500.0,0.00036438,8]
[394860642,1764024669847,-500.0,0.00036438,8]
[394860643,1764024669856,-221.09,0.00036438,8]
[394860644,1764024669866,-500.0,0.00036438,8]
[394860645,1764024669875,-500.0,0.00036438,8]
[394860646,1764024669884,-500.0,0.00036438,8]
[394860647,1764024669894,-424.93,0.00036438,8]
[394860648,1764024669903,-500.0,0.00036438,8]
[394860649,1764024669912,-500.0,0.00036438,8]
[394860651,1764024669921,-500.0,0.00036438,8]
[394860652,1764024669930,-500.0,0.00036438,8]
[394860653,1764024669940,-500.0,0.00036438,8]
[394860654,1764024670058,-500.0,0.00036438,8]
[394860655,1764024670067,-1243.99,0.00036438,8]
[394860656,1764024670078,-500.0,0.00036438,8]
[394860657,1764024670089,-500.0,0.00036438,8]
[394860658,1764024670104,-500.0,0.00036438,8]
[394860659,1764024670113,-500.0,0.00036438,8]
[394860660,1764024670122,-500.0,0.00036438,8]
[394860661,1764024670133,-500.0,0.00036438,8]
[394860662,1764024670142,-456.64527214,0.00036438,8]
[394860663,1764024670152,-500.0,0.00036438,8]
[394860664,1764024670162,-500.0,0.00036438,8]
[394860665,1764024670171,-500.0,0.00036438,8]
[394860666,1764024670180,-500.0,0.00036438,8]
[394860667,1764024670192,-386.81705327,0.00036438,8]
[394860668,1764024670201,-500.0,0.00036438,8]
[394860669,1764024670209,-632.71,0.00036438,8]
[394860670,1764024670219,-500.0,0.00036438,8]
[394860671,1764024670228,-500.0,0.00036438,2]
[394860672,1764024670238,-500.0,0.00036438,8]
[394860673,1764024670247,-500.0,0.00036438,8]
[394860674,1764024670256,-1448.34,0.00036438,2]
[394860676,1764024670266,-356.14,0.00036438,8]
[394860677,1764024670275,-500.0,0.00036438,8]
[394860678,1764024670284,-300.0,0.00036438,2]
[394860679,1764024670293,-500.0,0.00036438,8]
[394860680,1764024670303,-500.0,0.00036438,8]
[394860681,1764024670312,-500.0,0.00036438,8]
[394860682,1764024670321,-500.0,0.00036438,8]
[394860683,1764024670331,-181.8,0.00036467,60]
[394860684,1764024670340,-1571.35,0.000365,2]
[394860685,1764024670349,-278.453,0.00036517,30]
[394860686,1764024670358,-561.56582131,0.00036712,2]
[394860687,1764024670367,-500.0,0.00036712,8]
[394860688,1764024670376,-500.0,0.00036712,8]
[394860689,1764024670386,-500.0,0.00036712,8]
[394860690,1764024670395,-604.81,0.00036712,8]
[394860691,1764024670404,-500.0,0.00036712,8]
[394860692,1764024670413,-500.0,0.00036712,7]
[394860693,1764024670422,-500.0,0.00036712,8]
[394860694,1764024670431,-500.0,0.00036712,8]
[394860695,1764024670440,-500.0,0.00036712,8]
[394860696,1764024670450,-500.0,0.00036712,2]
[394860697,1764024670459,-500.0,0.00036712,8]
[394860698,1764024670468,-500.0,0.00036712,8]
[394860699,1764024670478,-500.0,0.00036712,8]
[394860700,1764024670488,-500.0,0.00036712,8]
[394860701,1764024670497,-500.0,0.00036712,8]
[394860702,1764024670507,-500.0,0.00036712,8]
[394860703,1764024670516,-500.0,0.00036712,8]
[394860704,1764024670525,-500.0,0.00036712,8]
[394860705,1764024670534,-500.0,0.00036712,8]
[394860707,1764024670544,-500.0,0.00036712,8]
[394860708,1764024670553,-313.36343961,0.00036712,8]
[394860709,1764024670562,-500.0,0.00036712,8]
[394860710,1764024670571,-553.77,0.00036712,8]
[394860711,1764024670581,-301.21,0.00036712,8]
[394860712,1764024670590,-641.68791404,0.00036712,8]
[394860713,1764024670599,-500.0,0.00036712,8]
[394860714,1764024670609,-500.0,0.00036712,8]
[394860715,1764024670618,-500.0,0.00036712,8]
[394860716,1764024670628,-191.63,0.00036712,8]
[394860717,1764024670638,-500.0,0.00036712,8]
[394860718,1764024670648,-500.0,0.00036712,8]
[394860719,1764024670659,-500.0,0.00036712,8]
[394860720,1764024670669,-227.6402546,0.00036712,8]
[394860721,1764024670678,-500.0,0.00036712,8]
[394860722,1764024670687,-592.19013881,0.00036712,8]
[394860723,1764024670699,-500.0,0.00036712,8]
[394860724,1764024670709,-500.0,0.00036712,8]
[394860725,1764024670718,-500.0,0.00036712,8]
[394860726,1764024670729,-500.0,0.00036712,8]
[394860727,1764024670742,-500.0,0.00036712,8]
[394860728,1764024670751,-500.0,0.00036712,8]
[394860729,1764024670760,-500.0,0.00036712,8]
[394860730,1764024670769,-500.0,0.00036712,8]
[394860731,1764024670779,-500.0,0.00036712,8]
[394860732,1764024670789,-343.36,0.00036712,8]
[394860733,1764024670799,-500.0,0.00036712,8]
[394860734,1764024670808,-500.0,0.00036712,8]
[394860736,1764024670817,-500.0,0.00036712,8]
[394860737,1764024670826,-500.0,0.00036712,8]
[394860738,1764024670836,-153.06,0.00036712,8]
[394860740,1764024670845,-500.0,0.00036712,8]
[394860741,1764024670855,-500.0,0.00036712,8]
[394860742,1764024670864,-500.0,0.00036712,8]
[394860743,1764024670874,-500.0,0.00036712,8]
[394860744,1764024670883,-500.0,0.00036712,8]
[394860745,1764024670892,-541.82,0.00036712,8]
[394860746,1764024670902,-500.0,0.00036712,8]
[394860747,1764024670911,-500.0,0.00036712,7]
[394860748,1764024670921,-500.0,0.00036712,8]
[394860749,1764024670930,-783.46,0.00036712,8]
[394860750,1764024670939,-575.47,0.00036712,8]
[394860751,1764024670947,-631.53710119,0.00036712,8]
[394860752,1764024670958,-500.0,0.00036712,8]
[394860753,1764024670967,-500.0,0.00036712,8]
[394860754,1764024670976,-500.0,0.00036712,8]
[394860755,1764024670987,-500.0,0.00036712,8]
[394860756,1764024670997,-500.0,0.00036712,8]
[394860757,1764024671006,-500.0,0.00036712,8]
[394860758,1764024671016,-500.0,0.00036712,8]
[394860760,1764024671025,-500.0,0.00036712,5]
[394860761,1764024671035,-500.0,0.00036712,8]
[394860762,1764024671047,-500.0,0.00036712,8]
[394860763,1764024671057,-500.0,0.00036712,8]
[394860764,1764024671067,-269.13,0.00036712,8]
[394860765,1764024671077,-500.0,0.00036712,8]
[394860766,1764024671086,-500.0,0.00036712,8]
[394860768,1764024671095,-500.0,0.00036712,8]
[394860769,1764024671105,-776.42,0.00036712,8]
[394860770,1764024671113,-500.0,0.00036712,8]
[394860771,1764024671123,-500.0,0.00036712,8]
[394860772,1764024671133,-500.0,0.00036712,8]
[394860773,1764024671142,-500.0,0.00036712,8]
[394860774,1764024671151,-500.0,0.00036712,8]
[394860775,1764024671160,-251.3690598,0.00036712,8]
[394860776,1764024671169,-500.0,0.00036712,8]
[394860777,1764024671178,-500.0,0.00036712,8]
[394860778,1764024671187,-500.0,0.00036712,8]
[394860779,1764024671196,-500.0,0.00036712,8]
[394860780,1764024671206,-500.0,0.00036712,8]
[394860781,1764024671215,-500.0,0.00036712,8]
[394860782,1764024671224,-500.0,0.00036712,8]
[394860783,1764024671235,-500.0,0.00036712,8]
[394860784,1764024671244,-340.57545394,0.00036712,8]
[394860785,1764024671253,-500.0,0.00036712,8]
[394860786,1764024671263,-500.0,0.00036712,8]
[394860787,1764024671272,-500.0,0.00036712,8]
[394860788,1764024671280,-698.86,0.00036712,8]
[394860789,1764024671290,-500.0,0.00036712,8]
[394860790,1764024671301,-340.04,0.00036712,8]
[394860791,1764024671311,-500.0,0.00036712,8]
[394860792,1764024671320,-500.0,0.00036712,8]
[394860793,1764024671330,-5039.41,0.00036712,2]
[394860794,1764024671339,-1797.52,0.00036712,8]
[394860795,1764024671348,-500.0,0.00036712,8]
[394860796,1764024671358,-500.0,0.00036712,8]
[394860797,1764024671367,-500.0,0.00036712,8]
[394860799,1764024671376,-500.0,0.00036712,8]
[394860800,1764024671385,-500.0,0.00036712,8]
[394860801,1764024671394,-500.0,0.00036712,8]
[394860802,1764024671404,-1279.26,0.00036712,8]
[394860803,1764024671413,-500.0,0.00036712,8]
[394860804,1764024671422,-501.57,0.00036712,8]
[394860805,1764024671431,-515.08,0.00036712,8]
[394860806,1764024671440,-500.0,0.00036712,8]
[394860807,1764024671450,-500.0,0.00036712,8]
[394860808,1764024671460,-320.62,0.00036712,8]
[394860809,1764024671469,-500.0,0.00036712,8]
[394860810,1764024671480,-500.0,0.00036712,8]
[394860811,1764024671490,-500.0,0.00036712,8]
[394860812,1764024671499,-500.0,0.00036712,8]
[394860813,1764024671508,-500.0,0.00036712,8]
[394860814,1764024671518,-500.0,0.00036712,8]
[394860815,1764024671527,-381.70440429,0.00036712,8]
[394860816,1764024671536,-1243.99,0.00036712,8]
[394860817,1764024671545,-500.0,0.00036712,8]
[394860818,1764024671554,-500.0,0.00036712,8]
[394860819,1764024671564,-500.0,0.00036712,8]
[394860820,1764024671573,-500.0,0.00036712,8]
[394860821,1764024671583,-500.0,0.00036712,8]
[394860822,1764024671591,-500.0,0.00036712,8]
[394860823,1764024671600,-500.0,0.00036712,8]
[394860824,1764024671609,-500.0,0.00036712,8]
[394860825,1764024671628,-500.0,0.00036712,8]
[394860826,1764024671639,-632.71,0.00036712,8]
[394860827,1764024671649,-500.0,0.00036712,8]
[394860828,1764024671660,-500.0,0.00036712,2]
[394860829,1764024671671,-561.62,0.00036712,8]
[394860830,1764024671680,-500.0,0.00036712,8]
[394860831,1764024671690,-1448.34,0.00036712,2]
[394860833,1764024671701,-500.0,0.00036712,8]
[394860834,1764024671712,-300.0,0.00036712,2]
[394860835,1764024671721,-500.0,0.00036712,8]
[394860836,1764024671733,-500.0,0.00036712,8]
[394860837,1764024671742,-500.0,0.00036712,8]
[394860838,1764024671752,-500.0,0.00036712,8]
[394860839,1764024671761,-1292.82,0.0003672,2]
[394860840,1764024671770,-1718.0,0.000368,2]
[394860841,1764024671780,-500.0,0.00036986,8]
[394860842,1764024671789,-191.14655075,0.00036986,8]
[394860843,1764024671798,-500.0,0.00036986,8]
[394860844,1764024671807,-500.0,0.00036986,7]
[394860845,1764024671817,-171.48,0.00036986,8]
[394860846,1764024671827,-435.08,0.00036986,8]
[394860847,1764024671837,-500.0,0.00036986,8]
[394860848,1764024671846,-500.0,0.00036986,2]
[394860849,1764024671855,-496.97010967,0.00036986,8]
[394860850,1764024671865,-500.0,0.00036986,8]
[394860851,1764024671875,-500.0,0.00036986,8]
[394860852,1764024671884,-500.0,0.00036986,8]
[394860853,1764024671894,-500.0,0.00036986,8]
[394860854,1764024671903,-215.61813076,0.00036986,8]
[394860855,1764024671912,-500.0,0.00036986,8]
[394860856,1764024671922,-500.0,0.00036986,8]
[394860857,1764024671931,-500.0,0.00036986,8]
[394860858,1764024671940,-553.77,0.00036986,8]
[394860859,1764024671949,-500.0,0.00036986,8]
[394860860,1764024671959,-500.0,0.00036986,8]
[394860861,1764024671968,-150.30783136,0.00036986,8]
[394860862,1764024671977,-500.0,0.00036986,8]
[394860863,1764024671990,-500.0,0.00036986,8]
[394860864,1764024672000,-500.0,0.00036986,8]
[394860865,1764024672011,-500.0,0.00036986,8]
[394860867,1764024672020,-500.0,0.00036986,8]
[394860868,1764024672030,-500.0,0.00036986,8]
[394860869,1764024672042,-500.0,0.00036986,8]
[394860870,1764024672051,-496.40646906,0.00036986,8]
[394860871,1764024672060,-187.28293355,0.00036986,2]
[394860872,1764024672070,-500.0,0.00036986,8]
[394860873,1764024672081,-500.0,0.00036986,8]
[394860874,1764024672091,-500.0,0.00036986,8]
[394860875,1764024672101,-500.0,0.00036986,8]
[394860876,1764024672111,-500.0,0.00036986,8]
[394860877,1764024672120,-500.0,0.00036986,8]
[394860878,1764024672130,-500.0,0.00036986,8]
[394860879,1764024672139,-500.0,0.00036986,8]
[394860880,1764024672149,-500.0,0.00036986,8]
[394860881,1764024672159,-500.0,0.00036986,8]
[394860882,1764024672168,-541.82,0.00036986,8]
[394860883,1764024672177,-500.0,0.00036986,8]
[394860884,1764024672191,-500.0,0.00036986,7]
[394860885,1764024672204,-500.0,0.00036986,8]
[394860886,1764024672213,-783.46,0.00036986,8]
[394860888,1764024672394,-500.0,0.00036986,8]
[394860889,1764024672404,-242.52879515,0.00036986,8]
[394860890,1764024672414,-500.0,0.00036986,8]
[394860891,1764024672424,-500.0,0.00036986,8]
[394860893,1764024672433,-500.0,0.00036986,8]
[394860894,1764024672442,-500.0,0.00036986,8]
[394860895,1764024672452,-500.0,0.00036986,8]
[394860896,1764024672460,-500.0,0.00036986,5]
[394860898,1764024672470,-500.0,0.00036986,8]
[394860899,1764024672480,-500.0,0.00036986,8]
[394860900,1764024672491,-401.66091354,0.00036986,8]
[394860901,1764024672500,-500.0,0.00036986,8]
[394860902,1764024672509,-500.0,0.00036986,8]
[394860904,1764024672518,-500.0,0.00036986,8]
[394860905,1764024672530,-776.42,0.00036986,8]
[394860906,1764024672539,-500.0,0.00036986,8]
[394860908,1764024672549,-500.0,0.00036986,8]
[394860909,1764024672558,-500.0,0.00036986,8]
[394860910,1764024672567,-500.0,0.00036986,8]
[394860911,1764024672576,-500.0,0.00036986,8]
[394860912,1764024672585,-500.0,0.00036986,8]
[394860914,1764024672595,-500.0,0.00036986,8]
[394860915,1764024672604,-500.0,0.00036986,8]
[394860916,1764024672614,-264.81486384,0.00036986,8]
[394860917,1764024672623,-500.0,0.00036986,8]
[394860919,1764024672633,-500.0,0.00036986,8]
[394860920,1764024672642,-500.0,0.00036986,8]
[394860921,1764024672654,-500.0,0.00036986,8]
[394860922,1764024672665,-500.0,0.00036986,8]
[394860924,1764024672674,-500.0,0.00036986,8]
[394860925,1764024672684,-500.0,0.00036986,8]
[394860926,1764024672695,-698.86,0.00036986,8]
[394860927,1764024672706,-500.0,0.00036986,8]
[394860929,1764024672715,-500.0,0.00036986,8]
[394860930,1764024672730,-500.0,0.00036986,8]
[394860931,1764024672740,-5039.41,0.00036986,2]
[394860932,1764024672750,-1797.52,0.00036986,8]
[394860934,1764024672759,-500.0,0.00036986,8]
[394860935,1764024672768,-500.0,0.00036986,8]
[394860936,1764024672777,-500.0,0.00036986,8]
[394860937,1764024672786,-500.0,0.00036986,8]
[394860939,1764024672796,-500.0,0.00036986,8]
[394860940,1764024672805,-500.0,0.00036986,8]
[394860941,1764024672815,-199.0,0.00036986,9]
[394860942,1764024672824,-1279.26,0.00036986,8]
[394860944,1764024672832,-156.22,0.00036986,8]
[394860945,1764024672842,-500.0,0.00036986,8]
[394860946,1764024672852,-385.32505563,0.00036986,8]
[394860947,1764024672861,-500.0,0.00036986,8]
[394860949,1764024672870,-500.0,0.00036986,8]
[394860950,1764024672879,-500.0,0.00036986,8]
[394860951,1764024672888,-500.0,0.00036986,8]
[394860952,1764024672899,-500.0,0.00036986,8]
[394860953,1764024672907,-1243.99,0.00036986,8]
[394860955,1764024672917,-500.0,0.00036986,8]
[394860956,1764024672928,-500.0,0.00036986,8]
[394860957,1764024672938,-500.0,0.00036986,8]
[394860959,1764024672947,-500.0,0.00036986,8]
[394860960,1764024672956,-500.0,0.00036986,8]
[394860961,1764024672965,-500.0,0.00036986,8]
[394860962,1764024672974,-500.0,0.00036986,8]
[394860963,1764024672985,-502.35199313,0.00036986,8]
[394860965,1764024672993,-632.71,0.00036986,8]
[394860966,1764024673003,-500.0,0.00036986,8]
[394860967,1764024673012,-500.0,0.00036986,2]
[394860968,1764024673021,-500.0,0.00036986,8]
[394860970,1764024673030,-1448.34,0.00036986,2]
[394860971,1764024673040,-401.74,0.00036986,2]
[394860972,1764024673049,-259.67867885,0.00036986,8]
[394860973,1764024673058,-500.0,0.00036986,8]
[394860975,1764024673067,-500.0,0.00036986,8]
[394860976,1764024673077,-200.0,0.00036986,5]
[394860977,1764024673087,-1402.53,0.00036986,30]
[394860978,1764024673096,-10244.14719973,0.00037,2]
[394860979,1764024673105,-500.0,0.00037,20]
[394860980,1764024673114,-30208.15525563,0.00037,5]
[394860981,1764024673122,-500.0,0.0003726,8]
[394860982,1764024673131,-500.0,0.0003726,7]
[394860983,1764024673140,-500.0,0.0003726,8]
[394860984,1764024673149,-500.0,0.0003726,2]
[394860985,1764024673158,-411.76,0.0003726,8]
[394860986,1764024673167,-500.0,0.0003726,8]
[394860987,1764024673175,-500.0,0.0003726,8]
[394860988,1764024673185,-385.86,0.0003726,8]
[394860989,1764024673194,-383.89228328,0.0003726,8]
[394860990,1764024673203,-403.91897459,0.0003726,8]
[394860991,1764024673212,-553.77,0.0003726,8]
[394860992,1764024673221,-500.0,0.0003726,8]
[394860993,1764024673230,-500.0,0.0003726,8]
[394860994,1764024673239,-452.09490264,0.0003726,8]
[394860996,1764024673248,-500.0,0.0003726,8]
[394860997,1764024673257,-500.0,0.0003726,8]
[394860998,1764024673268,-500.0,0.0003726,8]
[394860999,1764024673276,-595.21,0.0003726,8]
[394861001,1764024673285,-500.0,0.0003726,8]
[394861002,1764024673295,-523.62,0.0003726,8]
[394861003,1764024673305,-500.0,0.0003726,8]
[394861004,1764024673314,-500.0,0.0003726,8]
[394861006,1764024673323,-500.0,0.0003726,8]
[394861007,1764024673332,-260.31402,0.0003726,8]
[394861008,1764024673342,-500.0,0.0003726,8]
[394861009,1764024673351,-500.0,0.0003726,8]
[394861011,1764024673361,-541.82,0.0003726,8]
[394861012,1764024673370,-500.0,0.0003726,8]
[394861013,1764024673379,-500.0,0.0003726,7]
[394861014,1764024673389,-783.46,0.0003726,8]
[394861015,1764024673399,-500.0,0.0003726,8]
[394861017,1764024673409,-500.0,0.0003726,8]
[394861018,1764024673419,-500.0,0.0003726,8]
[394861019,1764024673429,-500.0,0.0003726,8]
[394861020,1764024673438,-456.99918041,0.0003726,8]
[394861022,1764024673448,-500.0,0.0003726,8]
[394861023,1764024673457,-500.0,0.0003726,5]
[394861024,1764024673467,-500.0,0.0003726,8]
[394861025,1764024673476,-500.0,0.0003726,8]
[394861027,1764024673487,-500.0,0.0003726,8]
[394861028,1764024673496,-400.26768184,0.0003726,8]
[394861029,1764024673506,-345.42865791,0.0003726,8]
[394861030,1764024673515,-776.42,0.0003726,8]
[394861031,1764024673525,-500.0,0.0003726,8]
[394861032,1764024673535,-500.0,0.0003726,8]
[394861033,1764024673544,-500.0,0.0003726,8]
[394861034,1764024673553,-500.0,0.0003726,8]
[394861035,1764024673563,-508.46439903,0.0003726,8]
[394861036,1764024673572,-500.0,0.0003726,8]
[394861037,1764024673582,-500.0,0.0003726,8]
[394861038,1764024673590,-500.0,0.0003726,8]
[394861039,1764024673600,-638.89252813,0.0003726,8]
[394861040,1764024673609,-500.0,0.0003726,8]
[394861041,1764024673618,-500.0,0.0003726,8]
[394861042,1764024673627,-500.0,0.0003726,8]
[394861043,1764024673636,-382.26,0.0003726,8]
[394861044,1764024673645,-500.0,0.0003726,8]
[394861045,1764024673656,-500.0,0.0003726,8]
[394861046,1764024673670,-698.86,0.0003726,8]
[394861047,1764024673679,-255.98,0.0003726,8]
[394861048,1764024673690,-399.18,0.0003726,8]
[394861049,1764024673699,-5039.41,0.0003726,2]
[394861050,1764024673710,-1797.52,0.0003726,8]
[394861051,1764024673719,-500.0,0.0003726,8]
[394861053,1764024673729,-500.0,0.0003726,8]
[394861054,1764024673741,-436.65,0.0003726,8]
[394861055,1764024673750,-500.0,0.0003726,8]
[394861056,1764024673760,-500.0,0.0003726,8]
[394861057,1764024673770,-500.0,0.0003726,8]
[394861058,1764024673779,-1279.26,0.0003726,8]
[394861059,1764024673788,-500.0,0.0003726,8]
[394861060,1764024673798,-500.0,0.0003726,8]
[394861061,1764024673807,-500.0,0.0003726,8]
[394861062,1764024673816,-337.0,0.0003726,8]
[394861063,1764024673825,-500.0,0.0003726,8]
[394861064,1764024673835,-224.831093,0.0003726,8]
[394861065,1764024673844,-1243.99,0.0003726,8]
[394861066,1764024673853,-422.37997637,0.0003726,8]
[394861067,1764024673862,-500.0,0.0003726,8]
[394861068,1764024673871,-500.0,0.0003726,8]
[394861069,1764024673879,-500.0,0.0003726,8]
[394861071,1764024673889,-587.26375342,0.0003726,8]
[394861072,1764024673898,-188.08,0.0003726,8]
[394861073,1764024673907,-632.71,0.0003726,8]
[394861074,1764024673916,-500.0,0.0003726,8]
[394861075,1764024673926,-397.04628,0.0003726,2]
[394861076,1764024673935,-276.72,0.0003726,8]
[394861077,1764024673946,-1448.34,0.0003726,2]
[394861078,1764024673955,-500.0,0.0003726,8]
[394861079,1764024673965,-564.55,0.0003726,8]
[394861080,1764024673973,-500.0,0.00037387,120]
[394861081,1764024673983,-1075.01,0.000375,14]
[394861082,1764024673992,-6041.57,0.000375,14]
[394861083,1764024674001,-6041.56,0.000375,14]
[394861084,1764024674010,-643.04139544,0.00037534,8]
[394861085,1764024674020,-263.72453366,0.00037534,7]
[394861086,1764024674030,-500.0,0.00037534,8]
[394861087,1764024674039,-500.0,0.00037534,2]
[394861088,1764024674049,-500.0,0.00037534,8]
[394861089,1764024674058,-500.0,0.00037534,8]
[394861090,1764024674067,-553.77,0.00037534,8]
[394861091,1764024674077,-310.03267456,0.00037534,8]
[394861092,1764024674088,-500.0,0.00037534,8]
[394861093,1764024674097,-500.0,0.00037534,8]
[394861094,1764024674106,-338.02976685,0.00037534,8]
[394861095,1764024674115,-269.46,0.00037534,8]
[394861097,1764024674125,-522.21,0.00037534,8]
[394861098,1764024674134,-500.0,0.00037534,8]
[394861099,1764024674143,-500.0,0.00037534,120]
[394861100,1764024674152,-500.0,0.00037534,8]
[394861101,1764024674161,-500.0,0.00037534,8]
[394861102,1764024674170,-500.0,0.00037534,8]
[394861103,1764024674179,-483.6,0.00037534,8]
[394861104,1764024674189,-541.82,0.00037534,8]
[394861105,1764024674199,-152.25,0.00037534,8]
[394861106,1764024674208,-500.0,0.00037534,7]
[394861108,1764024674217,-783.46,0.00037534,8]
[394861109,1764024674227,-500.0,0.00037534,8]
[394861110,1764024674237,-500.0,0.00037534,8]
[394861111,1764024674247,-584.83,0.00037534,8]
[394861112,1764024674256,-560.12,0.00037534,8]
[394861113,1764024674266,-163.17,0.00037534,8]
[394861114,1764024674275,-500.0,0.00037534,5]
[394861115,1764024674284,-180.07140515,0.00037534,8]
[394861116,1764024674293,-500.0,0.00037534,8]
[394861117,1764024674303,-532.01283023,0.00037534,8]
[394861119,1764024674312,-776.42,0.00037534,8]
[394861120,1764024674321,-500.0,0.00037534,8]
[394861121,1764024674331,-500.0,0.00037534,8]
[394861122,1764024674340,-322.57,0.00037534,8]
[394861123,1764024674349,-444.36,0.00037534,8]
[394861125,1764024674466,-247.59,0.00037534,8]
[394861126,1764024674476,-500.0,0.00037534,8]
[394861127,1764024674487,-500.0,0.00037534,8]
[394861128,1764024674496,-399.2,0.00037534,8]
[394861129,1764024674506,-500.0,0.00037534,8]
[394861130,1764024674516,-452.71,0.00037534,8]
[394861131,1764024674527,-500.0,0.00037534,8]
[394861132,1764024674538,-698.86,0.00037534,8]
[394861133,1764024674547,-5039.41,0.00037534,2]
[394861134,1764024674556,-1797.52,0.00037534,8]
[394861135,1764024674566,-500.0,0.00037534,8]
[394861136,1764024674575,-500.0,0.00037534,8]
[394861137,1764024674585,-525.38,0.00037534,8]
[394861138,1764024674594,-268.0,0.00037534,8]
[394861139,1764024674604,-246.09,0.00037534,8]
[394861140,1764024674614,-199.0,0.00037534,10]
[394861141,1764024674623,-1279.26,0.00037534,8]
[394861142,1764024674633,-184.11,0.00037534,8]
[394861143,1764024674642,-636.51261411,0.00037534,8]
[394861144,1764024674653,-500.0,0.00037534,8]
[394861145,1764024674665,-407.36689883,0.00037534,8]
[394861146,1764024674674,-1243.99,0.00037534,8]
[394861147,1764024674683,-500.0,0.00037534,8]
[394861148,1764024674695,-285.23,0.00037534,8]
[394861149,1764024674704,-290.18077589,0.00037534,8]
[394861150,1764024674713,-632.71,0.00037534,8]
[394861152,1764024674722,-500.0,0.00037534,8]
[394861153,1764024674732,-1448.34,0.00037534,2]
[394861154,1764024674741,-500.0,0.00037534,8]
[394861155,1764024674751,-4285.40722849,0.0003759,2]
[394861156,1764024674760,-301.01,0.000376,30]
[394861157,1764024674769,-5000.0,0.00037736,2]